[Event "Early-Titled-Tuesday-Blitz-May-14-2024"]
[Site "Chess.com"]
[Date "2024.05.14"]
[Round "6"]
[White "GrotBchess"]
[Black "Kombinator01"]
[Result "1-0"]
[WhiteElo "2534"]
[BlackElo "2363"]
[TimeControl "180+1"]
[EndTime "9:08:19 PDT"]
[Termination "GrotBchess won on time"]

1. e4 {[%clk 0:02:57.8]} 1... c6 {[%clk 0:02:58.6]} 2. d4 {[%clk 0:02:57.1]}
2... d5 {[%clk 0:02:58.1]} 3. Nd2 {[%clk 0:02:57.1]} 3... dxe4 {[%clk 0:02:56]}
4. Nxe4 {[%clk 0:02:58]} 4... Bf5 {[%clk 0:02:54.4]} 5. Ng3 {[%clk 0:02:58]}
5... Bg6 {[%clk 0:02:54.3]} 6. c3 {[%clk 0:02:58.5]} 6... e6 {[%clk 0:02:51.9]}
7. N1e2 {[%clk 0:02:58.6]} 7... c5 {[%clk 0:02:32.8]} 8. h4 {[%clk 0:02:52]}
8... h6 {[%clk 0:02:30.3]} 9. Nf4 {[%clk 0:02:51.9]} 9... Bh7 {[%clk 0:02:28.9]}
10. Bb5+ {[%clk 0:02:51]} 10... Nd7 {[%clk 0:02:27.7]} 11. d5 {[%clk 0:02:51.1]}
11... e5 {[%clk 0:02:24.4]} 12. Ne6 {[%clk 0:02:50.6]} 12... Qb6 {[%clk
0:02:07.5]} 13. Bxd7+ {[%clk 0:02:37.4]} 13... Kxd7 {[%clk 0:02:07.5]} 14. Nxf8+
{[%clk 0:02:37.9]} 14... Rxf8 {[%clk 0:02:07]} 15. Qg4+ {[%clk 0:02:37.6]} 15...
f5 {[%clk 0:02:00.3]} 16. Qxg7+ {[%clk 0:02:34.2]} 16... Ne7 {[%clk 0:02:00.9]}
17. Qxe5 {[%clk 0:02:33.1]} 17... Ng6 {[%clk 0:01:49.4]} 18. Qg7+ {[%clk
0:02:22.4]} 18... Kc8 {[%clk 0:01:45.4]} 19. h5 {[%clk 0:02:13.4]} 19... Re8+
{[%clk 0:01:41]} 20. Ne2 {[%clk 0:02:06]} 20... Ne5 {[%clk 0:01:11.9]} 21. O-O
{[%clk 0:01:47.4]} 21... Nf3+ {[%clk 0:01:11.7]} 22. Kh1 {[%clk 0:01:43.2]}
22... Qd8 {[%clk 0:00:44.5]} 23. Qg3 {[%clk 0:01:26.2]} 23... Rxe2 {[%clk
0:00:34.7]} 24. Qxf3 {[%clk 0:01:25.8]} 24... Re4 {[%clk 0:00:35.3]} 25. Bf4
{[%clk 0:01:15.7]} 25... Qh4+ {[%clk 0:00:34.1]} 26. Bh2 {[%clk 0:01:15.7]}
26... Rg8 {[%clk 0:00:31.6]} 27. Rae1 {[%clk 0:01:08.2]} 27... Reg4 {[%clk
0:00:31.4]} 28. g3 {[%clk 0:00:59.1]} 28... Qxh5 {[%clk 0:00:29.8]} 29. Re7
{[%clk 0:00:58.3]} 29... Bg6 {[%clk 0:00:18.9]} 30. d6 {[%clk 0:00:56.9]} 30...
Re4 {[%clk 0:00:18.6]} 31. Qd3 {[%clk 0:00:38.9]} 31... Qe2 {[%clk 0:00:12.9]}
32. Qxe2 {[%clk 0:00:37.9]} 32... Rxe2 {[%clk 0:00:08.3]} 33. Rxe2 {[%clk
0:00:38.8]} 33... Bh5 {[%clk 0:00:08.3]} 34. Re7 {[%clk 0:00:38.1]} 34... Bf3+
{[%clk 0:00:08.9]} 35. Kg1 {[%clk 0:00:38.2]} 35... f4 {[%clk 0:00:08]} 36. Rfe1
{[%clk 0:00:38]} 36... h5 {[%clk 0:00:07.3]} 37. Re8+ {[%clk 0:00:36.9]} 1-0

[Event "Early-Titled-Tuesday-Blitz-May-14-2024"]
[Site "Chess.com"]
[Date "2024.05.14"]
[Round "6"]
[White "noblerone"]
[Black "remyrushbrooke"]
[Result "1-0"]
[WhiteElo "2507"]
[BlackElo "2317"]
[TimeControl "180+1"]
[EndTime "9:08:19 PDT"]
[Termination "noblerone won on time"]

1. d4 {[%clk 0:02:57]} 1... g6 {[%clk 0:03:00.3]} 2. Nf3 {[%clk 0:02:57.5]} 2...
Bg7 {[%clk 0:03:00.7]} 3. Bg5 {[%clk 0:02:58.1]} 3... d5 {[%clk 0:02:56.6]} 4.
e3 {[%clk 0:02:56.5]} 4... Nf6 {[%clk 0:02:55.6]} 5. Bd3 {[%clk 0:02:55.2]} 5...
O-O {[%clk 0:02:55.7]} 6. O-O {[%clk 0:02:53.5]} 6... Nbd7 {[%clk 0:02:55.6]} 7.
c4 {[%clk 0:02:51]} 7... c6 {[%clk 0:02:55.3]} 8. cxd5 {[%clk 0:02:50.2]} 8...
cxd5 {[%clk 0:02:43.2]} 9. Nc3 {[%clk 0:02:49.9]} 9... h6 {[%clk 0:02:42.7]} 10.
Bh4 {[%clk 0:02:49.4]} 10... b6 {[%clk 0:02:42.1]} 11. Qb3 {[%clk 0:02:46.6]}
11... Bb7 {[%clk 0:02:41.7]} 12. Rfc1 {[%clk 0:02:45.2]} 12... e6 {[%clk
0:02:27.9]} 13. a4 {[%clk 0:02:43.5]} 13... g5 {[%clk 0:02:22.2]} 14. Bg3 {[%clk
0:02:42.8]} 14... Ne4 {[%clk 0:02:22.6]} 15. a5 {[%clk 0:02:19.2]} 15... Rc8
{[%clk 0:02:05.2]} 16. axb6 {[%clk 0:02:15]} 16... axb6 {[%clk 0:01:55]} 17. Ra7
{[%clk 0:02:12.4]} 17... Bc6 {[%clk 0:01:45.9]} 18. Rca1 {[%clk 0:02:07.5]}
18... h5 {[%clk 0:01:40.2]} 19. Bxe4 {[%clk 0:02:00.5]} 19... dxe4 {[%clk
0:01:40.1]} 20. Nd2 {[%clk 0:02:01]} 20... Nc5 {[%clk 0:01:14.6]} 21. dxc5
{[%clk 0:01:29.9]} 21... bxc5 {[%clk 0:00:42.9]} 22. Ndxe4 {[%clk 0:01:16.2]}
22... c4 {[%clk 0:00:42.9]} 23. Qc2 {[%clk 0:00:59.1]} 23... f5 {[%clk 0:00:13]}
24. Nc5 {[%clk 0:00:43.9]} 24... Bd5 {[%clk 0:00:02.7]} 25. Rd7 {[%clk
0:00:27.9]} 25... Qb6 {[%clk 0:00:01.2]} 26. Nxd5 {[%clk 0:00:20.4]} 26... exd5
{[%clk 0:00:02.1]} 27. Raa7 {[%clk 0:00:15.9]} 27... Qxc5 {[%clk 0:00:01.6]} 28.
Rxg7+ {[%clk 0:00:15.3]} 1-0

[Event "Early-Titled-Tuesday-Blitz-May-14-2024"]
[Site "Chess.com"]
[Date "2024.05.14"]
[Round "6"]
[White "pfalcon1949"]
[Black "kekic76"]
[Result "1-0"]
[WhiteElo "1921"]
[BlackElo "2288"]
[TimeControl "180+1"]
[EndTime "9:08:19 PDT"]
[Termination "pfalcon1949 won on time"]

1. e4 {[%clk 0:02:49.3]} 1... c6 {[%clk 0:03:00.2]} 2. d4 {[%clk 0:02:48.3]}
2... d5 {[%clk 0:03:00.9]} 3. e5 {[%clk 0:02:48.8]} 3... Bf5 {[%clk 0:03:00.5]}
4. h4 {[%clk 0:02:49]} 4... h5 {[%clk 0:02:59]} 5. Bg5 {[%clk 0:02:49]} 5... Qb6
{[%clk 0:02:57.1]} 6. Bd3 {[%clk 0:02:48.6]} 6... Bxd3 {[%clk 0:02:52.7]} 7.
Qxd3 {[%clk 0:02:48.3]} 7... e6 {[%clk 0:02:52.7]} 8. Nd2 {[%clk 0:02:47.2]}
8... Be7 {[%clk 0:02:45.6]} 9. Ngf3 {[%clk 0:02:43.7]} 9... Bxg5 {[%clk
0:02:43.3]} 10. Nxg5 {[%clk 0:02:43]} 10... Ne7 {[%clk 0:02:43.9]} 11. O-O
{[%clk 0:02:42.1]} 11... Nf5 {[%clk 0:02:44]} 12. c3 {[%clk 0:02:20]} 12... Nd7
{[%clk 0:02:41.5]} 13. a4 {[%clk 0:02:13.5]} 13... c5 {[%clk 0:02:41.3]} 14. c4
{[%clk 0:02:09.6]} 14... Nxd4 {[%clk 0:02:25.2]} 15. cxd5 {[%clk 0:02:04.5]}
15... exd5 {[%clk 0:02:26.1]} 16. e6 {[%clk 0:01:57.7]} 16... Nxe6 {[%clk
0:02:21.7]} 17. Qxd5 {[%clk 0:01:50.6]} 17... Nf6 {[%clk 0:02:15]} 18. Qe5
{[%clk 0:01:45.1]} 18... O-O {[%clk 0:02:08.4]} 19. Ndf3 {[%clk 0:01:33.8]}
19... Qc7 {[%clk 0:01:42.1]} 20. Qc3 {[%clk 0:01:11.9]} 20... Nxg5 {[%clk
0:01:15.7]} 21. Nxg5 {[%clk 0:00:59.5]} 21... Qf4 {[%clk 0:01:11.3]} 22. g3
{[%clk 0:00:56.2]} 22... Qd4 {[%clk 0:01:10.8]} 23. Qc2 {[%clk 0:00:53.5]} 23...
Rfd8 {[%clk 0:00:54.2]} 24. Rad1 {[%clk 0:00:50]} 24... Qe5 {[%clk 0:00:31.5]}
25. Rde1 {[%clk 0:00:48.4]} 25... Qd5 {[%clk 0:00:21]} 26. Re7 {[%clk
0:00:47.5]} 26... Rf8 {[%clk 0:00:14.9]} 27. Rfe1 {[%clk 0:00:40.2]} 27... Rae8
{[%clk 0:00:12.6]} 28. Rxe8 {[%clk 0:00:32.5]} 28... Rxe8 {[%clk 0:00:12.7]} 29.
Rxe8+ {[%clk 0:00:32]} 29... Nxe8 {[%clk 0:00:13.6]} 30. Qh7+ {[%clk 0:00:30.9]}
30... Kf8 {[%clk 0:00:14]} 31. Qxh5 {[%clk 0:00:28.6]} 31... g6 {[%clk 0:00:09]}
32. Nh7+ {[%clk 0:00:27.2]} 32... Kg7 {[%clk 0:00:08.3]} 33. Qxd5 {[%clk
0:00:28.1]} 1-0

[Event "Early-Titled-Tuesday-Blitz-May-14-2024"]
[Site "Chess.com"]
[Date "2024.05.14"]
[Round "6"]
[White "JoliyRoger"]
[Black "ValeriyGrinev"]
[Result "1/2-1/2"]
[WhiteElo "2424"]
[BlackElo "2594"]
[TimeControl "180+1"]
[EndTime "9:08:20 PDT"]
[Termination "Game drawn by repetition"]

1. d4 {[%clk 0:03:00.9]} 1... d5 {[%clk 0:02:59.8]} 2. c4 {[%clk 0:03:00.9]}
2... dxc4 {[%clk 0:03:00.7]} 3. Nf3 {[%clk 0:03:00.5]} 3... Nf6 {[%clk
0:03:01.1]} 4. e3 {[%clk 0:03:00.9]} 4... e6 {[%clk 0:03:01.3]} 5. Bxc4 {[%clk
0:03:01.3]} 5... a6 {[%clk 0:03:01.7]} 6. O-O {[%clk 0:03:00.8]} 6... b5 {[%clk
0:03:02]} 7. Bb3 {[%clk 0:03:00.2]} 7... Bb7 {[%clk 0:03:02.3]} 8. Nc3 {[%clk
0:02:50]} 8... Nbd7 {[%clk 0:03:02.3]} 9. Qe2 {[%clk 0:02:48.4]} 9... c5 {[%clk
0:03:02.5]} 10. Rd1 {[%clk 0:02:48.5]} 10... Qc7 {[%clk 0:03:02.6]} 11. d5
{[%clk 0:02:44.3]} 11... exd5 {[%clk 0:03:03.5]} 12. Nxd5 {[%clk 0:02:44.2]}
12... Nxd5 {[%clk 0:03:04.4]} 13. Bxd5 {[%clk 0:02:44.9]} 13... Bxd5 {[%clk
0:03:05.3]} 14. Rxd5 {[%clk 0:02:45.1]} 14... Be7 {[%clk 0:03:06.2]} 15. b3
{[%clk 0:02:35.1]} 15... O-O {[%clk 0:03:05.3]} 16. Bb2 {[%clk 0:02:35.4]} 16...
Bf6 {[%clk 0:03:05.9]} 17. Rad1 {[%clk 0:02:33.2]} 17... Rad8 {[%clk 0:03:04.6]}
18. h3 {[%clk 0:02:29.8]} 18... Bxb2 {[%clk 0:03:03.5]} 19. Qxb2 {[%clk
0:02:30.2]} 19... Nb6 {[%clk 0:03:03.7]} 20. R5d2 {[%clk 0:01:53.4]} 20... c4
{[%clk 0:03:02.6]} 21. Rc1 {[%clk 0:01:51.6]} 21... Rxd2 {[%clk 0:03:01.3]} 22.
Nxd2 {[%clk 0:01:51]} 22... Rc8 {[%clk 0:03:01]} 23. bxc4 {[%clk 0:01:49.2]}
23... Nxc4 {[%clk 0:03:01.9]} 24. Nxc4 {[%clk 0:01:49]} 24... bxc4 {[%clk
0:03:02.8]} 25. Qc3 {[%clk 0:01:39.9]} 25... h6 {[%clk 0:03:02.4]} 26. Rd1
{[%clk 0:01:37.5]} 26... a5 {[%clk 0:03:00.7]} 27. Rd5 {[%clk 0:01:35.8]} 27...
a4 {[%clk 0:02:56.4]} 28. e4 {[%clk 0:01:22.2]} 28... Qc6 {[%clk 0:02:55.3]} 29.
Rd4 {[%clk 0:01:06.6]} 29... Qc5 {[%clk 0:02:52.2]} 30. g3 {[%clk 0:01:04.2]}
30... Kh8 {[%clk 0:02:46.5]} 31. Kg2 {[%clk 0:01:01.3]} 31... Kh7 {[%clk
0:02:45.2]} 32. h4 {[%clk 0:01:01.3]} 32... Rc7 {[%clk 0:02:31.9]} 33. Rd5
{[%clk 0:00:57.8]} 33... Qc6 {[%clk 0:02:30.8]} 34. Rd4 {[%clk 0:00:57.2]} 34...
Qf6 {[%clk 0:02:29.2]} 35. e5 {[%clk 0:00:44.6]} 35... Qxe5 {[%clk 0:02:24.1]}
36. Qc2+ {[%clk 0:00:44.4]} 36... g6 {[%clk 0:02:22.5]} 37. Re4 {[%clk
0:00:41.4]} 37... Qd5 {[%clk 0:02:21.3]} 38. Kh2 {[%clk 0:00:41.6]} 38... c3
{[%clk 0:02:20.5]} 39. h5 {[%clk 0:00:41.5]} 39... Qxh5+ {[%clk 0:02:19.9]} 40.
Kg1 {[%clk 0:00:40.2]} 40... Rd7 {[%clk 0:02:09.7]} 41. Qxc3 {[%clk 0:00:34.5]}
41... Rd1+ {[%clk 0:02:07.3]} 42. Re1 {[%clk 0:00:35]} 42... Rxe1+ {[%clk
0:02:07.5]} 43. Qxe1 {[%clk 0:00:35.5]} 43... Qd5 {[%clk 0:02:05.2]} 44. a3
{[%clk 0:00:34.3]} 44... Qb3 {[%clk 0:02:04.4]} 45. Qe7 {[%clk 0:00:34.6]} 45...
h5 {[%clk 0:02:02.7]} 46. Qf8 {[%clk 0:00:27.3]} 46... Qd1+ {[%clk 0:02:01.1]}
47. Kg2 {[%clk 0:00:25.7]} 47... Qd5+ {[%clk 0:02:00.6]} 48. Kg1 {[%clk
0:00:25.8]} 48... Qf5 {[%clk 0:01:57.6]} 49. Qb4 {[%clk 0:00:26.1]} 49... Qg4
{[%clk 0:01:56.6]} 50. Qe7 {[%clk 0:00:22.6]} 50... Kg7 {[%clk 0:01:55.2]} 51.
Qe5+ {[%clk 0:00:22.3]} 51... Kh7 {[%clk 0:01:55.8]} 52. Qe7 {[%clk 0:00:21.8]}
52... Qf5 {[%clk 0:01:54.6]} 53. Qb4 {[%clk 0:00:20]} 53... Qd7 {[%clk
0:01:52.8]} 54. Qc5 {[%clk 0:00:18.5]} 54... Kg7 {[%clk 0:01:51.5]} 55. Qe5+
{[%clk 0:00:18.2]} 55... f6 {[%clk 0:01:52.1]} 56. Qc5 {[%clk 0:00:17.9]} 56...
g5 {[%clk 0:01:51.4]} 57. Qb4 {[%clk 0:00:18.1]} 57... Kg6 {[%clk 0:01:50.2]}
58. Qe4+ {[%clk 0:00:17.8]} 58... Kg7 {[%clk 0:01:48.6]} 59. Qb4 {[%clk
0:00:15.5]} 59... Qa7 {[%clk 0:01:46.5]} 60. Qe4 {[%clk 0:00:13.8]} 60... Qd7
{[%clk 0:01:40.3]} 61. Qb4 {[%clk 0:00:13.8]} 1/2-1/2

[Event "Early-Titled-Tuesday-Blitz-May-14-2024"]
[Site "Chess.com"]
[Date "2024.05.14"]
[Round "6"]
[White "DACF2905"]
[Black "yuriydovzik"]
[Result "1-0"]
[WhiteElo "2434"]
[BlackElo "2159"]
[TimeControl "180+1"]
[EndTime "9:08:24 PDT"]
[Termination "DACF2905 won on time"]

1. e4 {[%clk 0:03:00.9]} 1... c6 {[%clk 0:02:58.8]} 2. d4 {[%clk 0:03:00.3]}
2... Na6 {[%clk 0:02:58.7]} 3. Bxa6 {[%clk 0:02:59.4]} 3... Qa5+ {[%clk
0:02:57.5]} 4. Nc3 {[%clk 0:02:58.3]} 4... Qxa6 {[%clk 0:02:57.3]} 5. Nge2
{[%clk 0:02:58.3]} 5... b6 {[%clk 0:02:54.3]} 6. O-O {[%clk 0:02:58.3]} 6... e6
{[%clk 0:02:50.4]} 7. d5 {[%clk 0:02:58.3]} 7... Nf6 {[%clk 0:02:46.8]} 8. Bg5
{[%clk 0:02:57.3]} 8... Be7 {[%clk 0:02:35.7]} 9. dxc6 {[%clk 0:02:56.5]} 9...
dxc6 {[%clk 0:02:33.4]} 10. e5 {[%clk 0:02:55.9]} 10... Nd5 {[%clk 0:02:28.5]}
11. Bxe7 {[%clk 0:02:55.9]} 11... Kxe7 {[%clk 0:02:15.2]} 12. Nd4 {[%clk
0:02:55.1]} 12... Bd7 {[%clk 0:02:04.6]} 13. Ne4 {[%clk 0:02:54]} 13... c5
{[%clk 0:01:48.9]} 14. Nf3 {[%clk 0:02:49.2]} 14... Bb5 {[%clk 0:01:38.5]} 15.
Re1 {[%clk 0:02:49]} 15... Rad8 {[%clk 0:01:35.4]} 16. Qc1 {[%clk 0:02:49.2]}
16... h6 {[%clk 0:01:34.3]} 17. Nd6 {[%clk 0:02:38.7]} 17... Bc6 {[%clk
0:01:26.4]} 18. a3 {[%clk 0:02:36]} 18... f6 {[%clk 0:01:13.5]} 19. c4 {[%clk
0:02:35.4]} 19... Nc7 {[%clk 0:01:07.4]} 20. Qf4 {[%clk 0:02:29.1]} 20... Bxf3
{[%clk 0:00:45.7]} 21. exf6+ {[%clk 0:02:25.8]} 21... gxf6 {[%clk 0:00:34.1]}
22. Nf5+ {[%clk 0:02:25.5]} 22... Kd7 {[%clk 0:00:23.3]} 23. Rad1+ {[%clk
0:00:43]} 23... Kc8 {[%clk 0:00:21.4]} 24. Ne7+ {[%clk 0:00:40.7]} 24... Kb8
{[%clk 0:00:14.1]} 25. Qxf3 {[%clk 0:00:40.4]} 25... Qb7 {[%clk 0:00:12.1]} 26.
Nc6+ {[%clk 0:00:39.9]} 26... Kc8 {[%clk 0:00:10.5]} 27. Nxd8 {[%clk 0:00:37.8]}
27... Qxf3 {[%clk 0:00:08.2]} 28. gxf3 {[%clk 0:00:37.9]} 28... Rxd8 {[%clk
0:00:08.4]} 29. Rxd8+ {[%clk 0:00:38]} 29... Kxd8 {[%clk 0:00:08.6]} 30. f4
{[%clk 0:00:38.6]} 30... Ke7 {[%clk 0:00:08.5]} 31. Kg2 {[%clk 0:00:38.5]} 31...
Ne8 {[%clk 0:00:09]} 32. Kf3 {[%clk 0:00:37.8]} 32... Nd6 {[%clk 0:00:09.6]} 33.
b3 {[%clk 0:00:38.1]} 33... Nf5 {[%clk 0:00:09.5]} 34. Ke4 {[%clk 0:00:36.8]}
34... Nd4 {[%clk 0:00:09.3]} 35. b4 {[%clk 0:00:36.6]} 35... f5+ {[%clk
0:00:08.1]} 36. Kd3 {[%clk 0:00:36.1]} 36... Nf3 {[%clk 0:00:04.4]} 37. Re3
{[%clk 0:00:35.1]} 37... Nd4 {[%clk 0:00:03.4]} 38. Rh3 {[%clk 0:00:34.3]} 38...
Kd6 {[%clk 0:00:02.5]} 39. Rxh6 {[%clk 0:00:33.7]} 1-0

[Event "Early-Titled-Tuesday-Blitz-May-14-2024"]
[Site "Chess.com"]
[Date "2024.05.14"]
[Round "6"]
[White "czechbul17"]
[Black "Shuvalov"]
[Result "1-0"]
[WhiteElo "2205"]
[BlackElo "2541"]
[TimeControl "180+1"]
[EndTime "9:08:25 PDT"]
[Termination "czechbul17 won on time"]

1. e4 {[%clk 0:03:00.9]} 1... e6 {[%clk 0:02:59.7]} 2. Qe2 {[%clk 0:02:57.8]}
2... c5 {[%clk 0:02:59]} 3. g3 {[%clk 0:02:57.8]} 3... Nc6 {[%clk 0:02:58.7]} 4.
Bg2 {[%clk 0:02:58.4]} 4... Be7 {[%clk 0:02:59.2]} 5. Nf3 {[%clk 0:02:57.3]}
5... d5 {[%clk 0:02:58.9]} 6. d3 {[%clk 0:02:56.9]} 6... Nf6 {[%clk 0:02:58.5]}
7. O-O {[%clk 0:02:57.3]} 7... O-O {[%clk 0:02:58.4]} 8. Re1 {[%clk 0:02:56.9]}
8... b5 {[%clk 0:02:57.5]} 9. Nbd2 {[%clk 0:02:54.2]} 9... a5 {[%clk 0:02:56.5]}
10. Nf1 {[%clk 0:02:52.7]} 10... a4 {[%clk 0:02:54.7]} 11. e5 {[%clk 0:02:46.3]}
11... Nd7 {[%clk 0:02:54]} 12. a3 {[%clk 0:02:46.5]} 12... b4 {[%clk 0:02:52.4]}
13. h4 {[%clk 0:02:44.1]} 13... bxa3 {[%clk 0:02:51.1]} 14. bxa3 {[%clk
0:02:43.8]} 14... Rb8 {[%clk 0:02:50.7]} 15. Bf4 {[%clk 0:02:36.8]} 15... Ba6
{[%clk 0:02:49.1]} 16. Qe3 {[%clk 0:02:33.4]} 16... Rb2 {[%clk 0:02:38.5]} 17.
Qc1 {[%clk 0:02:31.7]} 17... Rb6 {[%clk 0:02:25.4]} 18. Ne3 {[%clk 0:02:30.5]}
18... Re8 {[%clk 0:02:14.1]} 19. h5 {[%clk 0:02:27.5]} 19... h6 {[%clk
0:02:13.8]} 20. Ng4 {[%clk 0:02:26.2]} 20... Nd4 {[%clk 0:02:02.4]} 21. Nfh2
{[%clk 0:02:05.7]} 21... Nf5 {[%clk 0:01:54.9]} 22. Nf3 {[%clk 0:02:01.3]} 22...
c4 {[%clk 0:01:44.5]} 23. d4 {[%clk 0:01:57.2]} 23... c3 {[%clk 0:01:44.5]} 24.
Ne3 {[%clk 0:01:51.8]} 24... Rb2 {[%clk 0:01:27.1]} 25. Nd1 {[%clk 0:01:40.5]}
25... Qb6 {[%clk 0:01:17.2]} 26. Nxc3 {[%clk 0:01:37.6]} 26... Qc6 {[%clk
0:00:43.1]} 27. Qxb2 {[%clk 0:01:32.6]} 27... Rb8 {[%clk 0:00:43.7]} 28. Qc1
{[%clk 0:01:31.6]} 28... Qxc3 {[%clk 0:00:43.5]} 29. Qd2 {[%clk 0:01:28.8]}
29... Qc6 {[%clk 0:00:38.5]} 30. Bf1 {[%clk 0:01:15.1]} 30... Bxf1 {[%clk
0:00:37.2]} 31. Rxf1 {[%clk 0:01:13.1]} 31... Rb2 {[%clk 0:00:35.3]} 32. Qd3
{[%clk 0:01:10.4]} 32... Nb6 {[%clk 0:00:30.3]} 33. Rab1 {[%clk 0:01:03]} 33...
Rxc2 {[%clk 0:00:13.5]} 34. Rxb6 {[%clk 0:01:01.7]} 34... Rc3 {[%clk 0:00:10]}
35. Rxc6 {[%clk 0:00:59.9]} 35... Rxd3 {[%clk 0:00:10.4]} 36. Rc8+ {[%clk
0:00:55.4]} 36... Kh7 {[%clk 0:00:10.3]} 37. Kg2 {[%clk 0:00:48.3]} 37... Bxa3
{[%clk 0:00:10.1]} 38. Rb1 {[%clk 0:00:45.9]} 38... Be7 {[%clk 0:00:06.5]} 39.
Rbb8 {[%clk 0:00:41.4]} 1-0

[Event "Early-Titled-Tuesday-Blitz-May-14-2024"]
[Site "Chess.com"]
[Date "2024.05.14"]
[Round "6"]
[White "mapleaff"]
[Black "Josgar05"]
[Result "0-1"]
[WhiteElo "2299"]
[BlackElo "2428"]
[TimeControl "180+1"]
[EndTime "9:08:26 PDT"]
[Termination "Josgar05 won on time"]

1. d4 {[%clk 0:02:16.6]} 1... d5 {[%clk 0:02:58.2]} 2. Bf4 {[%clk 0:02:17]} 2...
Nf6 {[%clk 0:02:57.9]} 3. Nf3 {[%clk 0:02:17.5]} 3... e6 {[%clk 0:02:56.5]} 4.
e3 {[%clk 0:02:17.7]} 4... Nc6 {[%clk 0:02:57.1]} 5. c3 {[%clk 0:02:14.3]} 5...
Ne7 {[%clk 0:02:57.6]} 6. h3 {[%clk 0:02:12.1]} 6... Ng6 {[%clk 0:02:57.8]} 7.
Bh2 {[%clk 0:02:11.2]} 7... Bd6 {[%clk 0:02:55.7]} 8. Ne5 {[%clk 0:01:54.3]}
8... O-O {[%clk 0:02:52.5]} 9. Nd2 {[%clk 0:01:52]} 9... c5 {[%clk 0:02:51.5]}
10. Bd3 {[%clk 0:01:46.7]} 10... Qb6 {[%clk 0:02:49.8]} 11. Rb1 {[%clk
0:01:44.8]} 11... Qc7 {[%clk 0:02:47.4]} 12. f4 {[%clk 0:01:43.9]} 12... Nd7
{[%clk 0:02:37.1]} 13. O-O {[%clk 0:01:41.7]} 13... f5 {[%clk 0:02:35.8]} 14.
Qh5 {[%clk 0:01:34.2]} 14... Nf6 {[%clk 0:02:26.4]} 15. Qg5 {[%clk 0:01:29.1]}
15... Ne7 {[%clk 0:02:18.2]} 16. Ndf3 {[%clk 0:01:14]} 16... Ne4 {[%clk
0:02:03.4]} 17. Qh4 {[%clk 0:01:12.4]} 17... Bd7 {[%clk 0:01:44.7]} 18. Bxe4
{[%clk 0:01:11.4]} 18... fxe4 {[%clk 0:01:43.2]} 19. Nd2 {[%clk 0:01:02.8]}
19... b5 {[%clk 0:01:32.3]} 20. g4 {[%clk 0:01:00.2]} 20... a5 {[%clk
0:01:30.2]} 21. a3 {[%clk 0:00:45.1]} 21... Rab8 {[%clk 0:01:26.9]} 22. b4
{[%clk 0:00:42.6]} 22... axb4 {[%clk 0:01:23.5]} 23. axb4 {[%clk 0:00:43.5]}
23... cxb4 {[%clk 0:01:14.8]} 24. cxb4 {[%clk 0:00:43.4]} 24... Qd8 {[%clk
0:01:10.1]} 25. Rfc1 {[%clk 0:00:36.6]} 25... Rc8 {[%clk 0:01:04.6]} 26. Nb3
{[%clk 0:00:20.8]} 26... Bxb4 {[%clk 0:01:00.9]} 27. Nc5 {[%clk 0:00:20.9]}
27... Bxc5 {[%clk 0:01:00.1]} 28. dxc5 {[%clk 0:00:21.8]} 28... Bc6 {[%clk
0:00:55]} 29. Nxc6 {[%clk 0:00:19.4]} 29... Nxc6 {[%clk 0:00:54.8]} 30. Qxd8
{[%clk 0:00:19.9]} 30... Rfxd8 {[%clk 0:00:55.2]} 31. Rxb5 {[%clk 0:00:20.3]}
31... d4 {[%clk 0:00:55.6]} 32. exd4 {[%clk 0:00:18.1]} 32... Nxd4 {[%clk
0:00:56.5]} 33. Rb2 {[%clk 0:00:16.7]} 33... Rb8 {[%clk 0:00:39.5]} 34. Rxb8
{[%clk 0:00:10.1]} 34... Rxb8 {[%clk 0:00:40.4]} 35. f5 {[%clk 0:00:10.6]} 35...
Nf3+ {[%clk 0:00:40.2]} 36. Kh1 {[%clk 0:00:09.1]} 36... Rb2 {[%clk 0:00:40.6]}
37. Bf4 {[%clk 0:00:05.9]} 37... e5 {[%clk 0:00:40.9]} 38. c6 {[%clk 0:00:05.4]}
38... exf4 {[%clk 0:00:40.2]} 0-1

[Event "Early-Titled-Tuesday-Blitz-May-14-2024"]
[Site "Chess.com"]
[Date "2024.05.14"]
[Round "6"]
[White "Ariadna_Atreides"]
[Black "Brahianzevich"]
[Result "0-1"]
[WhiteElo "2227"]
[BlackElo "2400"]
[TimeControl "180+1"]
[EndTime "9:08:29 PDT"]
[Termination "Brahianzevich won on time"]

1. d4 {[%clk 0:02:28.9]} 1... d5 {[%clk 0:02:58.8]} 2. Nf3 {[%clk 0:02:27.5]}
2... Nf6 {[%clk 0:02:54.3]} 3. e3 {[%clk 0:02:27.4]} 3... e6 {[%clk 0:02:53.1]}
4. Bd3 {[%clk 0:02:26.9]} 4... c5 {[%clk 0:02:52.7]} 5. b3 {[%clk 0:02:25.1]}
5... Nc6 {[%clk 0:02:51.7]} 6. O-O {[%clk 0:02:24.3]} 6... Bd6 {[%clk 0:02:51]}
7. Bb2 {[%clk 0:02:24]} 7... O-O {[%clk 0:02:50.8]} 8. Nbd2 {[%clk 0:02:16.6]}
8... b6 {[%clk 0:02:50.7]} 9. Ne5 {[%clk 0:02:09.1]} 9... Bb7 {[%clk 0:02:49.7]}
10. Ndf3 {[%clk 0:01:55.1]} 10... Ne7 {[%clk 0:02:27.8]} 11. dxc5 {[%clk
0:01:31.3]} 11... Bxc5 {[%clk 0:02:21.9]} 12. Ng5 {[%clk 0:01:10.8]} 12... h6
{[%clk 0:02:04.8]} 13. Nh3 {[%clk 0:01:08.5]} 13... Qc7 {[%clk 0:01:56.5]} 14.
Qf3 {[%clk 0:00:37.3]} 14... Bd6 {[%clk 0:01:50.2]} 15. Ng4 {[%clk 0:00:31]}
15... Nxg4 {[%clk 0:01:47]} 16. Qxg4 {[%clk 0:00:31.9]} 16... Be5 {[%clk
0:01:42.9]} 17. Bxe5 {[%clk 0:00:30.4]} 17... Qxe5 {[%clk 0:01:43.8]} 18. Nf4
{[%clk 0:00:30.4]} 18... Rac8 {[%clk 0:01:36.1]} 19. Rad1 {[%clk 0:00:26.7]}
19... a5 {[%clk 0:01:10]} 20. a4 {[%clk 0:00:23.1]} 20... Nc6 {[%clk 0:01:09.7]}
21. Nh5 {[%clk 0:00:17.9]} 21... Qg5 {[%clk 0:01:03]} 22. Qxg5 {[%clk
0:00:14.1]} 22... hxg5 {[%clk 0:01:03.9]} 23. Ng3 {[%clk 0:00:05.6]} 23... Nb4
{[%clk 0:01:03.5]} 24. Rd2 {[%clk 0:00:05.2]} 24... Nxd3 {[%clk 0:01:02.7]} 25.
cxd3 {[%clk 0:00:05.4]} 25... Rc3 {[%clk 0:01:01.9]} 26. Rb1 {[%clk 0:00:06.1]}
26... Rfc8 {[%clk 0:01:00.7]} 27. h3 {[%clk 0:00:05.3]} 27... Ba6 {[%clk
0:00:59.3]} 28. d4 {[%clk 0:00:04.2]} 28... Rc1+ {[%clk 0:00:59.1]} 29. Rxc1
{[%clk 0:00:03.8]} 29... Rxc1+ {[%clk 0:01:00]} 30. Kh2 {[%clk 0:00:04]} 30...
Rb1 {[%clk 0:01:00.4]} 31. Rc2 {[%clk 0:00:03.6]} 31... Rxb3 {[%clk 0:00:58.5]}
32. Rc7 {[%clk 0:00:02.6]} 32... Rb2 {[%clk 0:00:53]} 33. Ra7 {[%clk 0:00:02.6]}
33... Bd3 {[%clk 0:00:52.1]} 34. Ra8+ {[%clk 0:00:02.3]} 34... Kh7 {[%clk
0:00:51.8]} 35. Nh5 {[%clk 0:00:01.8]} 35... Kg6 {[%clk 0:00:50.4]} 36. Ng3
{[%clk 0:00:01.3]} 36... Rxf2 {[%clk 0:00:49.2]} 37. Rb8 {[%clk 0:00:00.5]}
37... Rb2 {[%clk 0:00:46.7]} 38. Rb7 {[%clk 0:00:00.9]} 38... Bc2 {[%clk
0:00:46.2]} 39. e4 {[%clk 0:00:00.9]} 39... dxe4 {[%clk 0:00:45.3]} 40. Ne2
{[%clk 0:00:01.1]} 40... Bxa4 {[%clk 0:00:42.6]} 41. Nc3 {[%clk 0:00:00.7]}
41... Bc6 {[%clk 0:00:39.9]} 42. Rc7 {[%clk 0:00:01.3]} 42... Bd5 {[%clk
0:00:39.9]} 0-1